bitfinex/quotes_SOLUSD_20240809
["timestamp","ask_amount","ask_price","bid_price","bid_amount"]
[1723228636249,43.6576,152.96,152.86,45.0]
[1723228636447,20.0,152.97,152.87,0.25098]
[1723228636647,26.5372,152.97,152.88,0.25098]
[1723228636846,37.12,152.98,152.89,6.1998]
[1723228637052,43.656,153.0,152.91,16.0748]
[1723228637362,37.12,153.02,152.92,0.12549]
[1723228637563,37.12,153.0,152.91,16.0748]
[1723228637857,6.5373,152.97,152.91,16.0748]
[1723228638060,6.5369,152.98,152.91,16.0748]
[1723228638440,6.5367,152.99,152.91,16.0748]
[1723228638649,50.42719576,153.02,152.92,45.25098]
[1723228638965,290.32,153.06,152.94,6.3478]
[1723228639166,37.12,153.06,152.95,100.25411507]
[1723228639361,6.5329,153.07,152.97,37.24549]
[1723228639665,6.533,153.07,152.98,0.12549]
[1723228639962,0.8290575,153.08,153.0,16.3249]
[1723228640167,6.5329,153.07,153.0,16.3249]
[1723228640745,44.4815575,153.08,153.0,16.3249]
[1723228641063,0.8290575,153.08,153.01,7.65474117]
[1723228641260,0.8290575,153.08,153.02,45.25098]
[1723228641569,6.533,153.07,153.01,6.3478]
[1723228641954,7.3615575,153.08,153.01,6.3478]
[1723228642771,7.3615575,153.08,153.02,45.12549]
[1723228642972,0.8290575,153.08,153.02,45.12549]
[1723228643171,0.8290575,153.08,153.03,1.30666727]
[1723228643372,0.8290575,153.08,153.01,6.3478]
[1723228643695,6.5334,153.06,153.01,6.3478]
[1723228643878,43.6534,153.06,153.0,16.3249]
[1723228644078,0.8290575,153.08,152.97,6.2261]
[1723228644079,6.5359,153.01,152.97,6.2261]
[1723228644285,37.12,153.02,152.97,6.2261]
[1723228644589,43.6552,153.02,152.97,6.2261]
[1723228644771,6.5356,153.01,152.97,6.2261]
[1723228644967,43.6554,153.02,152.97,6.2261]
[1723228645187,6.5356,153.01,152.97,6.2261]
[1723228645491,6.5364,152.99,152.97,6.2261]
[1723228646070,43.6559,153.0,152.97,6.2261]
[1723228646275,37.12,153.0,152.97,6.2261]
[1723228646576,37.12,152.98,152.93,6.5819]
[1723228647484,43.656,153.0,152.93,6.5819]
[1723228648380,6.5365,152.99,152.93,6.5819]
[1723228649182,6.5368,152.98,152.93,6.5819]
[1723228649377,43.6568,152.98,152.93,6.5819]
[1723228649794,43.6568,152.98,152.92,15.6878]
[1723228649795,37.12,152.96,152.92,15.6878]
[1723228650003,37.12,152.94,152.89,6.6115]
[1723228650496,37.12,152.96,152.89,6.6115]
[1723228650712,37.12,153.0,152.89,6.6115]
[1723228650994,20.0,152.99,152.89,6.6115]
[1723228651187,20.0,152.99,152.9,0.25098]
[1723228651375,20.0,152.99,152.9,45.25098]
[1723228651581,20.0,152.99,152.9,46.55864851]
[1723228651803,37.12,153.0,152.9,45.25098]
[1723228652189,6.5355,153.01,152.9,82.37098]
[1723228652379,37.12,153.02,152.91,16.08889]
[1723228652584,6.5373,152.97,152.91,15.9634]
[1723228652807,37.12,152.96,152.91,15.9634]
[1723228652984,6.5385,152.94,152.91,15.9634]
[1723228653180,6.5385,152.94,152.89,6.6115]
[1723228653386,37.12,152.96,152.89,6.6115]
[1723228654201,6.5382,152.95,152.89,6.6115]
[1723228654393,37.12,152.96,152.89,6.6115]
[1723228654602,43.89390495,152.98,152.89,6.6115]
[1723228654801,43.6568,152.98,152.89,6.6115]
[1723228655186,6.5372,152.97,152.89,6.6115]
[1723228655483,43.6568,152.98,152.89,6.6115]
[1723228655683,6.5364,152.99,152.9,45.50196]
[1723228655882,37.12,153.0,152.9,45.50196]
[1723228656516,43.6563,153.0,152.9,45.50196]
[1723228656684,6.5372,152.97,152.9,45.37647]
[1723228658120,6.5372,152.97,152.9,45.12549]
[1723228658323,6.77221809,153.03,152.89,6.6115]
[1723228658324,6.5384,152.95,152.89,6.6115]
[1723228658618,37.12,152.94,152.89,6.6115]
[1723228658810,37.12,152.92,152.89,6.6115]
[1723228658984,43.6594,152.92,152.89,6.6115]
[1723228659189,37.12,152.94,152.89,6.6115]
[1723228659390,37.12,152.98,152.89,6.6115]
[1723228659594,6.5372,152.97,152.89,6.6115]
[1723228659902,26.5377,152.96,152.89,6.6115]
[1723228660211,63.6577,152.96,152.89,6.6115]
[1723228661013,57.12,152.96,152.89,6.6115]
[1723228661196,0.25098,152.99,152.89,6.6115]
[1723228661197,43.6568,152.98,152.89,6.6115]
[1723228661548,6.5368,152.98,152.9,1.30778995]
[1723228662191,6.5368,152.98,152.91,0.12549]
[1723228662398,6.5377,152.96,152.9,45.12549]
[1723228662614,6.5377,152.96,152.89,6.1115]
[1723228662819,6.5373,152.97,152.89,6.1115]
[1723228663131,6.5373,152.97,152.9,45.12549]
[1723228664019,6.5375,152.97,152.9,45.12549]
[1723228664708,6.77221809,153.03,152.97,22.2008]
[1723228664915,0.8290575,153.08,153.04,6.534]
[1723228665101,0.8290575,153.08,153.01,6.5354]
[1723228665302,0.8290575,153.08,153.02,6.535]
[1723228665506,0.8290575,153.08,153.0,0.12549]
[1723228665835,0.8290575,153.08,153.02,37.24549]
[1723228666126,0.8290575,153.08,153.07,6.5329]
[1723228666332,0.8290575,153.08,153.06,6.5398]
[1723228667612,0.8290575,153.08,153.06,13.0731]
[1723228668014,0.8290575,153.08,153.06,6.5398]
[1723228670223,0.8290575,153.08,153.02,6.6423]
[1723228671334,0.8290575,153.08,153.05,6.5334]
[1723228671915,0.8290575,153.08,153.06,6.5333]
[1723228672115,0.8290575,153.08,153.02,6.6423]
[1723228672323,0.8290575,153.08,153.05,6.5337]
[1723228673427,0.8290575,153.08,153.07,6.5329]
[1723228673637,0.8290575,153.08,153.06,6.5332]
[1723228674644,0.8290575,153.08,153.07,6.5329]
[1723228675343,0.8290575,153.08,153.07,22.3814]
[1723228676537,0.8290575,153.08,153.07,22.50689]
[1723228676843,20.0,153.15,153.08,6.4126]
[1723228677045,26.5296,153.15,153.1,6.5316]
[1723228677437,20.0,153.15,153.08,6.4126]
[1723228677631,6.5299,153.15,153.1,6.5316]
[1723228680134,6.53,153.14,153.1,6.5316]
[1723228680330,6.53,153.14,153.09,6.532]
[1723228681246,6.5296,153.15,153.1,6.5316]
[1723228681555,37.12,153.15,153.08,6.4126]
[1723228681741,28.71,153.14,153.08,6.4126]
[1723228681949,35.24,153.14,153.09,6.5316]
[1723228682448,35.24,153.14,153.08,6.4126]
[1723228682449,48.83549,153.16,153.1,6.5316]
[1723228682753,6.5295,153.15,153.1,6.5316]
[1723228683352,48.71,153.16,153.1,6.5316]
[1723228683353,6.5299,153.14,153.1,6.5316]
[1723228683542,35.47530235,153.18,153.09,1.30632059]
[1723228683854,28.71,153.2,153.15,6.5293]
[1723228684158,35.2377,153.2,153.15,6.5293]
[1723228684332,6.5279,153.19,153.14,6.5299]
[1723228684534,35.2374,153.2,153.15,6.5294]
[1723228684754,13.2970735,153.21,153.16,12.8579]
[1723228684936,6.527,153.21,153.16,12.8579]
[1723228685249,7.59813921,153.23,153.16,6.3292]
[1723228685427,6.5266,153.22,153.16,6.3292]
[1723228685635,14.12433921,153.23,153.16,6.3292]
[1723228685952,6.5266,153.22,153.16,6.3292]
[1723228686150,6.527,153.21,153.16,6.3292]
[1723228687459,42.83463921,153.23,153.16,6.3292]
[1723228687842,6.5265,153.22,153.16,6.3292]
[1723228688042,14.12433921,153.23,153.18,6.5281]
[1723228688256,6.5265,153.22,153.17,6.5286]
[1723228688451,36.99549,153.22,153.16,6.3292]
[1723228688665,0.12549,153.21,153.16,6.3292]
[1723228688855,6.527,153.21,153.16,12.8579]
[1723228689363,6.527,153.21,153.16,12.8582]
[1723228690057,43.3966,153.22,153.17,6.5286]
[1723228690651,6.527,153.21,153.16,12.8582]
[1723228690847,6.5275,153.2,153.16,6.3292]
[1723228691060,6.527,153.21,153.16,12.8582]
[1723228691273,7.59813921,153.23,153.16,6.3292]
[1723228691750,7.59813921,153.23,153.17,1.30566033]
[1723228691949,7.59813921,153.23,153.16,6.3292]
[1723228691950,7.3555575,153.23,153.18,6.5282]
[1723228692164,6.5265,153.22,153.17,6.5286]
[1723228692459,6.5265,153.22,153.16,6.3292]
[1723228692460,0.8290575,153.23,153.2,6.5274]
[1723228692667,7.59630462,153.23,153.2,6.5274]
[1723228692867,0.8290575,153.23,153.19,6.5277]
[1723228693368,0.8290575,153.23,153.16,6.3292]
[1723228693369,7.3552575,153.23,153.18,6.5282]
[1723228693571,6.5266,153.22,153.17,6.5286]
[1723228693867,6.5271,153.21,153.16,12.8582]
[1723228694168,36.87,153.18,153.12,6.3427]
[1723228694348,6.5298,153.15,153.1,6.5316]
[1723228694678,36.87,153.16,153.09,16.2562]
[1723228694971,6.5296,153.15,153.11,6.5312]
[1723228695275,36.87,153.14,153.08,6.3427]
[1723228695478,6.5315,153.11,153.08,6.3427]
[1723228695649,43.4009,153.12,153.07,6.5328]
[1723228695849,36.87,153.14,153.05,16.2876]
[1723228696065,43.4,153.14,153.1,6.5316]
[1723228696279,43.4,153.14,153.05,16.2876]
[1723228696280,6.5312,153.11,153.05,16.2876]
[1723228696480,6.5324,153.09,153.04,13.0836]
[1723228696788,36.87,153.08,153.01,16.2876]
[1723228697148,36.87,153.1,153.01,16.2876]
[1723228697349,36.87,153.12,153.01,16.2876]
[1723228697664,20.0,153.11,153.01,16.2876]
[1723228697869,20.0,153.11,153.07,6.5327]
[1723228698068,20.0,153.11,153.06,6.5333]
[1723228698069,26.5312,153.11,153.06,6.5333]
[1723228698270,36.87,153.1,153.01,16.2876]
[1723228698452,6.5324,153.09,153.04,6.534]
[1723228698654,6.5326,153.08,153.01,16.2876]
[1723228699057,6.5331,153.07,153.01,16.2876]
[1723228699261,43.4025,153.08,153.03,6.5345]
[1723228699963,36.87,153.08,153.03,6.5345]
[1723228700162,36.87,153.08,153.04,6.534]
[1723228700359,36.87,153.08,153.01,22.8227]
[1723228700763,6.5333,153.07,153.01,22.8227]
[1723228701283,36.87,153.1,153.01,16.2876]
[1723228701581,20.0,153.09,153.06,6.5333]
[1723228701869,36.87,153.1,153.06,6.5333]
[1723228702250,26.78258,153.11,153.02,1.3068128]
[1723228702449,26.78258,153.11,153.06,6.5331]
[1723228702874,26.78258,153.11,153.05,6.5337]
[1723228703075,6.5319,153.1,153.05,6.5337]
[1723228703287,36.99549,153.1,153.04,6.5341]
[1723228703665,6.5325,153.09,153.01,16.2876]
[1723228703873,36.99549,153.1,153.01,16.2876]
[1723228705190,36.87,153.08,153.01,16.2876]
[1723228705689,36.87,153.08,153.04,6.5341]
[1723228706490,43.52719,153.1,153.05,6.5338]
[1723228707172,43.4017,153.1,153.05,6.5338]
[1723228707374,36.87,153.1,153.01,16.2876]
[1723228707570,6.5324,153.09,153.04,6.5341]
[1723228707894,6.5326,153.08,153.04,6.5342]
[1723228708694,6.5321,153.09,153.04,6.5342]
[1723228708889,26.77319319,153.11,153.08,6.5323]
[1723228709192,36.87,153.12,153.08,6.5323]
[1723228709497,6.5304,153.13,153.09,6.532]
[1723228709681,35.2404,153.13,153.09,6.532]
[1723228709994,35.2404,153.13,153.08,6.5324]
[1723228710696,28.71,153.13,153.09,6.532]
[1723228711074,28.71,153.13,153.08,6.5324]
[1723228711075,35.2405,153.13,153.08,6.5324]
[1723228711268,35.2405,153.13,153.02,28.83549]
[1723228711269,35.48181492,153.15,153.12,6.5308]
[1723228711502,28.71,153.15,153.05,6.4588]
[1723228711677,28.71,153.15,153.06,0.12549]
[1723228712002,28.71,153.15,153.11,6.5312]
[1723228712703,6.77066898,153.17,153.13,6.5301]
[1723228712704,28.71,153.17,153.13,6.5301]
[1723228713004,28.71,153.19,153.15,6.5295]
[1723228713198,35.47959412,153.19,153.1,1.43150265]
[1723228713369,28.71,153.19,153.15,6.5293]
[1723228714110,35.2378,153.19,153.15,6.5293]
[1723228714799,6.5285,153.18,153.11,6.3581]
[1723228715091,6.5285,153.18,153.13,6.53]
[1723228715465,6.5287,153.17,153.13,6.53]
[1723228715668,36.9,153.18,153.11,6.3581]
[1723228716104,6.5291,153.16,153.11,12.8893]
[1723228716396,36.9,153.18,153.12,6.5307]
[1723228716899,36.9,153.18,153.13,6.5303]
[1723228717091,6.5287,153.17,153.13,6.5303]
[1723228717395,6.5287,153.17,153.12,6.5307]
[1723228717697,43.4283,153.18,153.13,6.5302]
[1723228717930,6.5287,153.17,153.13,6.5302]
[1723228718207,36.9,153.18,153.11,12.8893]
[1723228718374,36.9,153.16,153.12,6.5307]
[1723228718580,2.58018918,153.24,153.11,6.3581]
[1723228718914,6.5273,153.21,153.16,6.5291]
[1723228719203,51.02626628,153.23,153.18,6.5282]
[1723228719580,44.2555575,153.23,153.18,6.5282]
[1723228719884,6.5266,153.22,153.17,6.5286]
[1723228720086,51.02567429,153.23,153.18,6.5282]
[1723228720305,20.0,153.22,153.18,6.5282]
[1723228720491,26.5266,153.22,153.17,6.5286]
[1723228720687,6.5274,153.2,153.15,6.5294]
[1723228721898,6.5274,153.2,153.14,13.0798]
[1723228723407,43.427,153.21,153.16,6.529]
[1723228723582,33.29758182,153.22,153.17,6.5283]
[1723228723786,26.5266,153.22,153.17,6.5283]
[1723228724910,20.0,153.22,153.15,6.5291]
[1723228725085,6.5274,153.2,153.16,6.529]
[1723228725289,6.5274,153.2,153.15,6.5294]
[1723228725491,36.9,153.21,153.15,6.5294]
[1723228725996,6.5277,153.2,153.15,6.5294]
[1723228727019,6.5277,153.2,153.16,6.529]
[1723228727194,43.427,153.21,153.16,6.529]
[1723228727599,6.5274,153.2,153.15,6.5294]
[1723228728525,36.9,153.19,153.11,6.3581]
[1723228728727,6.5287,153.17,153.12,6.5307]
[1723228728896,43.4287,153.17,153.12,6.5307]
[1723228729103,6.5295,153.15,153.07,6.081]
[1723228729296,43.4295,153.15,153.07,6.081]
[1723228729528,36.9,153.15,153.07,6.081]
[1723228729719,0.12549,153.18,153.08,38.20638051]
[1723228729923,20.0,153.22,153.19,6.5277]
[1723228730301,0.8290575,153.23,153.19,6.5277]
[1723228730703,6.5266,153.22,153.13,6.6435]
[1723228731298,6.5269,153.22,153.14,0.12549]
[1723228731504,6.5269,153.22,153.13,6.6435]
[1723228732923,6.527,153.21,153.17,6.5283]
[1723228733529,6.527,153.21,153.16,6.529]
[1723228733821,6.65209,153.22,153.17,6.5285]
[1723228737301,6.527,153.21,153.17,6.5285]
[1723228738923,6.527,153.21,153.16,6.529]
[1723228739120,6.5277,153.2,153.15,6.5295]
[1723228739303,6.5284,153.18,153.14,6.5298]
[1723228740102,6.5279,153.19,153.14,6.5298]
[1723228740501,28.68,153.18,153.13,6.5303]
[1723228740699,6.5288,153.17,153.13,6.5303]
[1723228740922,35.2083,153.18,153.13,6.5303]
[1723228741311,35.2083,153.18,153.14,6.5297]
[1723228742022,6.5288,153.17,153.12,6.5307]
[1723228742410,28.68,153.14,153.09,6.0925]
[1723228742614,28.68,153.14,153.09,6.532]
[1723228742825,28.68,153.12,153.09,6.532]
[1723228743332,28.68,153.14,153.1,6.5316]
[1723228744217,28.68,153.14,153.11,6.531]
[1723228744420,35.2103,153.14,153.09,6.532]
[1723228744635,28.68,153.12,153.05,6.4668]
[1723228744934,35.2108,153.12,153.07,6.5328]
[1723228745142,35.2108,153.12,153.08,6.5321]
[1723228745143,28.68,153.12,153.08,6.5321]
[1723228745428,28.68,153.12,153.09,6.5319]
[1723228745636,28.68,153.12,153.08,6.5324]
[1723228745937,35.2108,153.12,153.08,6.5324]
[1723228746122,6.5317,153.1,153.04,15.5404]
[1723228746327,6.5317,153.1,153.01,6.4726]
[1723228746328,28.68,153.1,153.01,6.4726]
[1723228746907,28.68,153.1,153.06,6.5333]
[1723228747108,6.5321,153.09,153.05,6.5337]
[1723228747421,35.2117,153.1,153.05,6.5337]
[1723228747628,35.2117,153.1,153.06,6.5333]
[1723228748012,6.5321,153.09,153.01,6.4726]
[1723228748521,35.2126,153.08,153.03,6.5346]
[1723228748808,35.2126,153.08,153.01,6.4726]
[1723228748809,6.5329,153.07,153.02,6.535]
[1723228749207,6.5329,153.07,153.03,6.5345]
[1723228749538,0.12549,153.07,153.03,6.5345]
[1723228749830,0.25098,153.07,153.03,6.5345]
[1723228750535,6.78388,153.07,153.02,6.5349]
[1723228751330,35.50807098,153.08,153.01,6.4726]
[1723228751331,6.82807098,153.08,153.06,6.5333]
[1723228751519,28.68,153.1,153.06,6.5333]
[1723228751834,28.68,153.08,153.01,6.4726]
[1723228752230,35.2126,153.08,153.03,6.5346]
[1723228753131,28.68,153.08,153.01,6.4726]
[1723228753314,28.68,153.08,153.06,6.5332]
[1723228753516,28.68,153.08,153.05,6.5337]
[1723228753914,28.68,153.08,153.06,6.5333]
[1723228755037,28.68,153.08,153.05,6.5337]
[1723228755238,35.2126,153.08,153.01,6.4726]
[1723228755424,28.68,153.08,153.04,6.5341]
[1723228757228,28.68,153.08,153.05,6.5336]
[1723228757427,28.68,153.1,153.05,6.5336]
[1723228757949,28.68,153.1,153.04,6.5341]
[1723228758123,35.2125,153.08,153.03,6.5345]
[1723228758514,35.2125,153.08,153.04,6.5341]
[1723228758744,28.68,153.08,153.04,6.5341]
[1723228762144,35.2117,153.1,153.06,6.5332]
[1723228762331,50.91299439,153.12,153.07,6.5328]
[1723228762640,6.5313,153.11,153.06,6.5332]
[1723228763857,35.2117,153.1,153.01,6.4726]
[1723228764062,35.2128,153.08,153.03,6.5345]
[1723228764430,0.12549,153.11,153.01,6.4726]
[1723228764431,28.68,153.1,153.01,6.4726]
[1723228764631,28.68,153.1,153.06,6.5333]
[1723228764937,35.2117,153.1,153.05,6.5336]
[1723228765443,35.2117,153.1,153.06,6.5333]
[1723228765640,35.2117,153.1,153.01,6.4726]
[1723228765830,28.68,153.1,153.01,6.4726]
[1723228766046,6.5321,153.09,153.04,6.5339]
[1723228767753,28.68,153.1,153.01,6.4726]
[1723228767934,28.68,153.1,153.02,0.12549]
[1723228768129,28.68,153.1,153.07,6.5328]
[1723228768334,28.68,153.1,153.02,0.12549]
[1723228769030,28.68,153.1,153.01,6.4726]
[1723228769226,22.35848439,153.12,153.01,6.4726]
[1723228769227,35.2129,153.08,153.01,6.4726]
[1723228769554,28.68,153.08,153.05,6.5338]
[1723228769730,0.12549,153.09,153.05,6.5338]
[1723228769930,35.2117,153.1,153.05,6.5338]
[1723228770355,6.5321,153.09,153.05,6.5338]
[1723228770942,28.68,153.1,153.06,6.5333]
[1723228773170,50.91299439,153.12,153.09,6.5317]
[1723228773353,44.0862,153.12,153.08,6.5323]
[1723228776050,35.21,153.14,153.09,6.5318]
[1723228776369,0.12549,153.13,153.09,6.5318]
[1723228776870,35.21,153.14,153.09,6.5318]
[1723228777268,22.96736438,153.16,153.06,28.68]
[1723228777465,16.1466,153.16,153.12,6.5305]
[1723228777667,22.6757,153.16,153.12,6.5305]
[1723228778488,22.6757,153.16,153.11,6.5311]
[1723228778984,22.3456,153.21,153.16,6.5287]
[1723228779288,6.5274,153.2,153.16,6.5287]
[1723228779465,6.5279,153.19,153.11,28.68]
[1723228779661,6.5279,153.19,153.09,28.80549]
[1723228779987,6.5287,153.17,153.12,6.5307]
[1723228780292,35.2091,153.16,153.11,6.5311]
[1723228780476,35.21,153.14,153.09,6.5317]
[1723228780985,28.68,153.14,153.11,6.5311]
[1723228781166,35.2095,153.16,153.11,6.5311]
[1723228781359,28.68,153.16,153.1,6.5316]
[1723228781887,6.5296,153.15,153.11,6.5312]
[1723228782070,35.2091,153.16,153.11,6.5312]
[1723228782270,6.5296,153.15,153.11,6.5312]
[1723228782475,6.5296,153.15,153.1,6.5316]
[1723228782885,35.2092,153.16,153.11,6.5311]
[1723228785159,28.68,153.16,153.08,6.6287]
[1723228785479,0.25098,153.18,153.08,6.6287]
[1723228785480,28.93098,153.18,153.08,6.6287]
[1723228785787,35.45958,153.18,153.13,6.5303]
[1723228786576,6.5296,153.15,153.08,6.6287]
[1723228786968,6.5296,153.15,153.1,6.5313]
[1723228787272,35.2092,153.16,153.12,6.5307]
[1723228787466,28.68,153.16,153.12,6.5307]
[1723228787673,28.93098,153.18,153.08,6.6287]
[1723228787871,28.93098,153.18,153.14,6.5299]
[1723228788289,0.12549,153.17,153.08,6.6287]
[1723228788474,0.25098,153.17,153.08,6.6287]
[1723228788681,35.2092,153.16,153.11,6.5311]
[1723228789779,6.5295,153.15,153.1,6.5315]
[1723228790301,28.68,153.12,153.06,6.5333]
[1723228790471,35.212,153.1,153.03,16.1251]
[1723228790889,28.68,153.08,153.04,6.5339]
[1723228791081,28.68,153.1,153.01,6.5177]
[1723228791280,28.68,153.1,153.07,6.5329]
[1723228791483,0.12549,153.09,153.05,6.5336]
[1723228792593,6.78308,153.09,153.05,6.5336]
[1723228792772,0.25098,153.09,153.05,6.5336]
[1723228792969,0.12549,153.09,153.05,6.5336]
[1723228793170,6.65769,153.09,153.05,6.5336]
[1723228794871,0.12549,153.09,153.06,6.5331]
[1723228795178,0.12549,153.09,153.01,6.5177]
[1723228795179,0.12549,153.09,153.05,6.5337]
[1723228797305,0.12549,153.11,153.08,6.5324]
[1723228797482,20.25098,153.11,153.07,6.5329]
[1723228797677,20.0,153.11,153.07,6.5329]
[1723228797898,26.5312,153.11,153.06,6.5333]
[1723228800006,6.532,153.1,153.05,6.5336]
[1723228800186,6.5321,153.09,153.01,6.5177]
[1723228800393,6.5337,153.06,152.99,16.1251]
[1723228800617,6.5337,153.06,153.01,6.5354]
[1723228800618,6.5338,153.05,153.01,6.5354]
[1723228801501,28.68,153.04,152.98,6.3822]
[1723228801700,35.2151,153.02,152.97,6.5369]
[1723228802716,35.2151,153.02,152.98,6.5366]
[1723228803116,35.216,153.0,152.95,6.538]
[1723228803311,35.216,153.0,152.9,34.9992]
[1723228803312,35.2169,152.98,152.9,6.3192]
[1723228803518,35.2169,152.98,152.94,6.5383]
[1723228803519,28.68,152.98,152.94,6.5383]
[1723228803712,28.68,153.0,152.9,34.9992]
[1723228803948,34.7122,153.04,152.92,28.68]
[1723228804138,34.7122,153.04,153.01,6.5351]
[1723228804139,28.68,153.04,153.01,6.5351]
[1723228804437,28.68,153.04,152.94,28.68]
[1723228804740,28.68,153.04,152.95,0.12549]
[1723228804918,15.9956,153.06,152.95,0.12549]
[1723228804919,15.9956,153.06,152.97,6.2454]
[1723228805119,6.8202578,153.09,152.98,28.80549]
[1723228805320,6.8202578,153.09,153.0,28.68]
[1723228805546,6.8202578,153.09,153.01,1.30681928]
[1723228805831,16.2219,153.1,153.07,6.5328]
[1723228806230,34.6941,153.12,153.02,29.98674108]
[1723228806754,28.68,153.12,153.03,1.43222576]
[1723228806927,6.81597198,153.14,153.1,6.5315]
[1723228807242,41.5578,153.16,153.11,6.5311]
[1723228807427,35.2091,153.16,153.11,6.5311]
[1723228807619,28.68,153.16,153.12,6.5308]
[1723228807819,35.2086,153.18,153.08,28.68]
[1723228808073,28.68,153.2,153.1,28.68]
[1723228808358,28.68,153.18,153.08,28.68]
[1723228808659,28.68,153.16,153.06,28.68]
[1723228808831,28.68,153.18,153.07,20.12549]
[1723228809038,28.68,153.18,153.08,73.93098]
[1723228809355,28.68,153.18,153.08,28.68]
[1723228810034,28.68,153.18,153.14,6.5298]
[1723228810232,35.49674304,153.2,153.15,6.5294]
[1723228810558,28.68,153.22,153.16,6.529]
[1723228811059,7.65027634,153.23,153.14,28.68]
[1723228811230,7.65027634,153.23,153.13,6.6491]
[1723228811231,0.8290575,153.23,153.22,6.5265]
[1723228811430,0.8290575,153.23,153.16,45.213]
[1723228811653,0.8290575,153.23,153.14,0.12549]
[1723228811654,7.3555575,153.23,153.13,6.6491]
[1723228811845,28.68,153.22,153.13,6.6491]
[1723228812047,28.68,153.22,153.18,6.5282]
[1723228812239,0.8290575,153.23,153.19,6.5278]
[1723228812443,28.68,153.22,153.17,6.5285]
[1723228812645,28.68,153.2,153.13,6.6491]
[1723228812857,28.68,153.22,153.17,6.5286]
[1723228813053,28.68,153.22,153.13,6.6491]
[1723228813759,28.68,153.2,153.13,6.6491]
[1723228814249,28.68,153.2,153.16,6.5287]
[1723228817058,28.68,153.2,153.17,6.5286]
[1723228818058,28.68,153.2,153.09,28.68]
[1723228818259,28.68,153.18,153.09,6.0873]
[1723228818563,35.2082,153.18,153.13,6.5303]
[1723228818937,6.5287,153.17,153.12,6.5307]
[1723228819136,28.68,153.18,153.14,6.5299]
[1723228819748,28.68,153.2,153.09,34.7673]
[1723228820063,28.68,153.22,153.18,6.5282]
[1723228820243,35.2065,153.22,153.17,6.5286]
[1723228820562,28.68,153.2,153.11,28.68]
[1723228820767,28.68,153.2,153.1,0.12549]
[1723228821144,35.2075,153.2,153.15,6.5292]
[1723228821341,6.5278,153.19,153.14,6.5299]
[1723228821556,0.8290575,153.23,153.14,6.5299]
[1723228821557,28.68,153.18,153.14,6.5299]
[1723228822463,28.68,153.16,153.09,6.0873]
[1723228822678,6.5306,153.13,153.05,6.3896]
[1723228822968,28.68,153.12,153.05,6.3896]
[1723228823357,28.68,153.14,153.05,6.3896]
[1723228823858,35.2103,153.14,153.09,6.5317]
[1723228824472,60.57189,153.18,153.05,35.0696]
[1723228824473,28.68,153.16,153.05,35.0696]
[1723228824646,44.1264,153.18,153.07,28.68]
[1723228824849,50.6547,153.18,153.13,6.5303]
[1723228825153,50.6546,153.18,153.14,6.5299]
[1723228825353,44.1264,153.18,153.13,6.5303]
[1723228825554,50.6546,153.18,153.14,6.5299]
[1723228825868,6.5287,153.17,153.12,6.5307]
[1723228826063,44.1264,153.18,153.07,28.68]
[1723228826266,50.6547,153.18,153.14,6.5298]
[1723228826465,6.5288,153.17,153.12,6.5304]